bitfinex-derivatives/quotes_BTCF0:USTF0_20250308
["timestamp","ask_amount","ask_price","bid_price","bid_amount"]
[1741412360679,0.00014552,86020.0,86017.0,0.529838]
[1741412360982,0.11641892,86020.0,86019.0,0.1162743]
[1741412362183,0.11641892,86020.0,86019.0,0.1172743]
[1741412362384,0.23541892,86020.0,86019.0,0.1172743]
[1741412363083,0.05365942,86020.0,86019.0,0.1172743]
[1741412363683,0.16993282,86020.0,86019.0,0.002]
[1741412364086,0.16993282,86020.0,86019.0,0.11838794]
[1741412364283,0.16993282,86020.0,86019.0,0.00211364]
[1741412365385,0.1162734,86020.0,86019.0,0.00211364]
[1741412365787,0.1162734,86020.0,86019.0,0.11838794]
[1741412367488,0.1162734,86020.0,86019.0,0.47918794]
[1741412368593,0.11638085,86023.0,86022.0,0.1162702]
[1741412369189,0.00011065,86023.0,86022.0,0.1162702]
[1741412369396,0.00011065,86023.0,86022.0,0.11638502]
[1741412369789,0.00011065,86023.0,86022.0,0.11738502]
[1741412370492,0.00011065,86023.0,86022.0,0.13366231]
[1741412370683,0.00011065,86023.0,86022.0,0.13466231]
[1741412371697,0.1151,86031.0,86030.0,0.1162594]
[1741412371992,0.3608,86043.0,86030.0,0.1162594]
[1741412371993,0.2343,86037.0,86036.0,0.1162513]
[1741412372793,0.3505499,86037.0,86036.0,0.1162513]
[1741412373397,0.1162513,86036.0,86035.0,0.2348921]
[1741412373591,0.2343513,86036.0,86035.0,0.2348921]
[1741412375094,0.2373513,86036.0,86035.0,0.2348921]
[1741412375499,0.1192513,86036.0,86035.0,0.2348921]
[1741412376202,0.005,86036.0,86035.0,0.2348921]
[1741412376407,0.005,86036.0,86035.0,0.23497955]
[1741412377811,0.005,86036.0,86035.0,0.25175648]
[1741412378714,0.005,86036.0,86035.0,0.25166903]
[1741412379803,0.1212513,86036.0,86035.0,0.13541693]
[1741412380003,0.1212513,86036.0,86035.0,0.25166953]
[1741412380509,0.1212513,86036.0,86035.0,0.25177414]
[1741412380710,0.1212513,86036.0,86035.0,0.251798]
[1741412381007,0.1212513,86036.0,86035.0,0.25166953]
[1741412381405,0.005,86036.0,86035.0,0.25166953]
[1741412382317,0.005,86036.0,86035.0,0.61246953]
[1741412383517,0.0581031,86070.0,86035.0,0.61246953]
[1741412383518,0.0581031,86070.0,86035.0,0.49621693]
[1741412383718,0.1119,86048.0,86042.0,0.13989968]
[1741412383920,0.1162418,86044.0,86043.0,0.33993632]
[1741412385217,0.05091907,86044.0,86043.0,0.33993632]
[1741412386315,0.05191907,86044.0,86043.0,0.33993632]
[1741412387412,0.05191907,86044.0,86043.0,0.22369532]
[1741412387612,0.17161907,86044.0,86043.0,0.22369532]
[1741412387812,0.27211907,86044.0,86043.0,0.22369532]
[1741412388709,0.27211907,86044.0,86043.0,0.41649532]
[1741412388912,0.27211907,86044.0,86043.0,0.22369532]
[1741412389509,0.27211907,86044.0,86043.0,0.33993712]
[1741412390822,0.05191907,86044.0,86043.0,0.34864277]
[1741412391814,0.001,86044.0,86043.0,0.34864277]
[1741412392316,0.1162383,86046.0,86043.0,0.34864277]
[1741412392513,0.1162383,86046.0,86045.0,0.1162364]
[1741412394323,0.1172383,86046.0,86045.0,0.1162364]
[1741412394510,0.1172383,86046.0,86045.0,0.13308908]
[1741412394912,0.1172383,86046.0,86045.0,0.1162364]
[1741412396322,0.1162383,86046.0,86045.0,0.1162364]
[1741412397632,0.1162383,86046.0,86043.0,0.30678326]
[1741412397633,0.1162405,86044.0,86043.0,0.23240097]
[1741412398228,0.3303405,86044.0,86043.0,0.34864277]
[1741412399626,0.1162405,86044.0,86043.0,0.34864277]
[1741412401929,0.03640146,86044.0,86043.0,0.34864277]
[1741412402232,0.1162405,86044.0,86043.0,0.34864007]
[1741412402639,0.05091799,86044.0,86043.0,0.34864007]
[1741412407231,0.1162369,86047.0,86046.0,0.1162378]
[1741412407929,0.1119,86048.0,86046.0,0.1162378]
[1741412408130,0.1119,86048.0,86047.0,0.2367]
[1741412408927,0.2281351,86048.0,86047.0,0.3529364]
[1741412409134,0.13378075,86048.0,86047.0,0.3529364]
[1741412410237,0.05394256,86048.0,86047.0,0.3529364]
[1741412410443,0.05394256,86048.0,86047.0,0.4714364]
[1741412411328,0.1162202,86060.0,86052.0,0.1162297]
[1741412411527,0.0581094,86060.0,86055.0,0.1162256]
[1741412411726,0.3608,86056.0,86055.0,0.1162256]
[1741412411935,0.37759871,86056.0,86055.0,0.1162256]
[1741412412346,0.37759871,86056.0,86055.0,0.11633365]
[1741412412529,0.13302301,86056.0,86055.0,0.11633365]
[1741412412840,0.13302301,86056.0,86055.0,0.33593365]
[1741412414041,0.24392301,86056.0,86055.0,0.33593365]
[1741412414229,0.01679871,86056.0,86055.0,0.33593365]
[1741412414430,0.1109,86072.0,86055.0,0.21970805]
[1741412414635,0.1109,86066.0,86065.0,0.1162121]
[1741412414838,0.1109,86066.0,86055.0,0.00010805]
[1741412415143,0.1162243,86056.0,86055.0,0.00010805]
[1741412416029,0.3230243,86056.0,86055.0,0.00010805]
[1741412416434,0.25770421,86056.0,86055.0,0.00010805]
[1741412417843,0.3568,86056.0,86054.0,4e-05]
[1741412418141,0.3568,86056.0,86047.0,0.00017431]
[1741412418142,0.1162351,86048.0,86047.0,0.00017431]
[1741412418738,0.2137,86049.0,86047.0,0.00017431]
[1741412419044,0.4484351,86048.0,86047.0,0.00017431]
[1741412419544,0.4484351,86048.0,86047.0,0.00117431]
[1741412419942,0.5984351,86048.0,86047.0,0.00017431]
[1741412420249,0.4484351,86048.0,86047.0,0.00117431]
[1741412420745,0.5984351,86048.0,86047.0,0.00117431]
[1741412420950,0.4484351,86048.0,86047.0,0.00117431]
[1741412421442,0.4484351,86048.0,86047.0,0.00217431]
[1741412421835,0.1162351,86048.0,86047.0,0.11841071]
[1741412422244,0.05871651,86050.0,86047.0,0.11741071]
[1741412422549,0.05091333,86048.0,86047.0,0.11641071]
[1741412422848,0.2953129,86055.0,86047.0,0.36097431]
[1741412423048,0.2372,86055.0,86047.0,0.41909221]
[1741412423350,0.1162329,86050.0,86049.0,0.1162331]
[1741412423744,0.1162351,86048.0,86047.0,0.47821051]
[1741412424447,0.0218874,86048.0,86047.0,0.47921051]
[1741412424746,0.0581166,86050.0,86047.0,0.36297431]
[1741412424945,0.1162351,86048.0,86047.0,0.36297431]
[1741412425140,0.0581151,86052.0,86047.0,0.36297431]
[1741412425350,0.0581151,86052.0,86051.0,0.116231]
[1741412426249,0.0581151,86052.0,86047.0,0.3778214]
[1741412426250,0.1162351,86048.0,86047.0,0.3778214]
[1741412426454,0.1162351,86048.0,86047.0,0.3788214]
[1741412426650,0.0581151,86052.0,86047.0,0.3788214]
[1741412427243,0.0363958,86055.0,86047.0,0.3788214]
[1741412427448,0.1162304,86052.0,86051.0,0.001]
[1741412427649,0.1162304,86052.0,86051.0,0.07664]
[1741412427851,0.1162297,86052.0,86051.0,0.07664]
[1741412428036,0.1162297,86052.0,86051.0,0.07564]
[1741412428236,0.1162297,86052.0,86051.0,0.07664]
[1741412429051,0.0581122,86056.0,86051.0,0.07664]
[1741412429052,0.1162247,86056.0,86055.0,0.1162256]
[1741412429247,0.3284,86065.0,86054.0,0.4770259]
[1741412429448,0.1162255,86056.0,86055.0,0.1073]
[1741412429752,0.1162255,86056.0,86055.0,0.2235256]
[1741412430152,0.0581087,86061.0,86055.0,0.1073]
[1741412430353,0.1162243,86056.0,86055.0,0.1073]
[1741412430943,0.1162243,86056.0,86055.0,0.2235256]
[1741412431141,0.1162243,86056.0,86055.0,0.3331256]
[1741412431550,0.1162243,86056.0,86055.0,0.3341256]
[1741412431751,0.1162243,86056.0,86055.0,0.4459256]
[1741412432147,0.1162243,86056.0,86055.0,0.4449256]
[1741412432347,0.1162243,86056.0,86055.0,0.4459256]
[1741412432544,0.05090886,86056.0,86055.0,0.4459256]
[1741412432950,0.05090886,86056.0,86055.0,0.4469256]
[1741412434051,0.1743337,86060.0,86059.0,0.1743238]
[1741412435260,0.0749883,86066.0,86061.0,0.1162162]
[1741412435453,0.1162148,86065.0,86064.0,0.1162121]
[1741412435653,0.0581058,86066.0,86064.0,0.1162121]
[1741412435847,0.1162148,86065.0,86064.0,0.1162121]
[1741412436048,0.4770095,86067.0,86066.0,0.1162108]
[1741412436553,0.49292512,86067.0,86066.0,0.1162108]
[1741412436749,0.13212512,86067.0,86066.0,0.1162108]
[1741412437357,0.01591562,86067.0,86063.0,4e-05]
[1741412437557,0.1162094,86067.0,86066.0,0.001]
[1741412437953,0.1162094,86067.0,86066.0,0.002]
[1741412438859,0.1162094,86067.0,86066.0,0.001]
[1741412439251,0.1743193,86066.0,86065.0,0.1162067]
[1741412439447,0.1162135,86064.0,86063.0,0.1172544]
[1741412439759,0.1152135,86064.0,86063.0,0.1162544]
[1741412440453,0.1132135,86064.0,86063.0,4e-05]
[1741412441356,0.1132135,86064.0,86063.0,0.1172148]
[1741412442253,0.1132135,86064.0,86063.0,0.1182148]
[1741412442659,0.1132135,86064.0,86063.0,0.002]
[1741412443753,0.1132135,86064.0,86063.0,0.001]
[1741412443952,0.1132135,86064.0,86063.0,0.002]
[1741412444649,0.04790132,86064.0,86063.0,0.002]
[1741412445254,0.0581058,86066.0,86063.0,0.002]
[1741412445460,0.1162135,86064.0,86063.0,0.002]
[1741412446861,0.01561309,86067.0,86057.0,0.1162228]
[1741412446862,0.0561086,86062.0,86061.0,4e-05]
[1741412447063,0.1723248,86062.0,86061.0,4e-05]
[1741412447653,0.1713248,86062.0,86061.0,4e-05]
[1741412448463,0.1703248,86062.0,86061.0,0.00104]
[1741412448869,0.1703248,86062.0,86061.0,0.1172575]
[1741412449051,0.1703248,86062.0,86061.0,0.11094]
[1741412449463,0.1703248,86062.0,86061.0,0.2271575]
[1741412449664,0.1703248,86062.0,86061.0,0.11094]
[1741412451659,0.2836248,86062.0,86061.0,0.11094]
[1741412452157,0.2836248,86062.0,86061.0,0.10994]
[1741412452363,0.2836248,86062.0,86061.0,0.11094]
[1741412453565,0.1703248,86062.0,86061.0,0.10994]
[1741412454662,0.1050114,86062.0,86061.0,0.10994]
[1741412454971,0.16312,86062.0,86061.0,0.10994]
[1741412455369,0.0581086,86062.0,86061.0,0.2261575]
[1741412455569,0.1162162,86062.0,86061.0,0.2261548]
[1741412455772,0.1162162,86062.0,86061.0,0.10994]
[1741412456163,0.1162162,86062.0,86061.0,0.22664]
[1741412456957,0.1162162,86062.0,86061.0,0.22764]
[1741412457356,0.1162162,86062.0,86061.0,0.22664]
[1741412457562,0.1162162,86062.0,86061.0,0.22764]
[1741412457856,0.1162162,86062.0,86061.0,0.2276]
[1741412458562,0.1162162,86062.0,86061.0,0.3438175]
[1741412459272,0.1162162,86062.0,86061.0,0.4203]
[1741412459574,0.03638821,86064.0,86061.0,0.4203]
[1741412459866,0.1162162,86062.0,86061.0,0.4203]
[1741412460871,0.1162162,86062.0,86061.0,0.5365175]
[1741412464176,0.1162162,86062.0,86061.0,0.4784086]
[1741412466682,0.05090456,86062.0,86061.0,0.4784086]
[1741412467465,0.05090456,86062.0,86061.0,0.2276]
[1741412467881,0.41170456,86062.0,86061.0,0.2276]
[1741412468178,0.60700456,86062.0,86061.0,0.2276]
[1741412469167,0.60700456,86062.0,86061.0,0.002]
[1741412471472,0.60700456,86062.0,86061.0,0.1169]
[1741412472672,0.60700456,86062.0,86061.0,0.002]
[1741412473276,0.60700456,86062.0,86061.0,0.1118]
[1741412473777,0.60700456,86062.0,86061.0,0.2291]
[1741412477289,0.1162351,86048.0,86046.0,0.3608]
[1741412477590,0.1162351,86048.0,86047.0,0.10847431]
[1741412478882,0.13149778,86048.0,86047.0,0.10847431]
[1741412479487,0.13149778,86048.0,86047.0,0.11828867]
[1741412480598,0.13149778,86048.0,86047.0,0.31151475]
[1741412485908,0.1162351,86048.0,86047.0,0.31151475]
[1741412486105,0.1162351,86048.0,86047.0,0.82152507]
[1741412486805,0.1162351,86048.0,86047.0,0.90295115]
[1741412487003,0.1162351,86048.0,86047.0,0.91747701]
[1741412487512,0.0581166,86050.0,86047.0,0.80124061]
[1741412488212,0.1162337,86049.0,86048.0,0.08142608]
[1741412488605,0.1162337,86049.0,86048.0,0.66792608]
[1741412489007,0.05091935,86049.0,86048.0,0.66792608]
[1741412490002,0.05091935,86049.0,86048.0,0.66892608]
[1741412494115,0.05091935,86049.0,86048.0,0.78516118]
[1741412496419,0.02920271,86050.0,86048.0,0.78516118]
[1741412496621,0.14543511,86050.0,86049.0,0.08142608]
[1741412497019,0.14543511,86050.0,86049.0,0.30852608]
[1741412497727,0.14543511,86050.0,86049.0,0.66932608]
[1741412498426,0.14543511,86050.0,86049.0,0.78655978]
[1741412498625,0.14543511,86050.0,86049.0,0.55562608]
[1741412498827,0.01468126,86055.0,86033.0,0.74153146]
[1741412498828,0.1162445,86041.0,86033.0,0.74153146]
[1741412499022,0.1162526,86035.0,86034.0,0.19613977]
[1741412499216,0.05092023,86035.0,86034.0,0.19613977]
[1741412499817,0.28022023,86035.0,86034.0,0.1147]
[1741412502030,0.29504055,86035.0,86034.0,0.1147]
[1741412502421,0.18014055,86035.0,86034.0,0.1147]
[1741412505024,0.29144055,86035.0,86034.0,0.1147]
[1741412505224,0.29144055,86035.0,86034.0,0.2239]
[1741412509518,0.29144055,86035.0,86034.0,0.340154]
[1741412509519,0.05092023,86035.0,86034.0,0.340154]
[1741412509722,0.0581216,86042.0,86039.0,0.0581228]
[1741412509923,0.1162445,86041.0,86040.0,0.2161]
[1741412510223,0.1162445,86041.0,86040.0,0.3323459]
[1741412510932,0.1162445,86041.0,86040.0,0.2161]
[1741412512127,0.1182445,86041.0,86040.0,0.2161]
[1741412512834,0.1202445,86041.0,86040.0,0.2161]
[1741412513429,0.3405445,86041.0,86040.0,0.2161]
[1741412514841,0.3405445,86041.0,86040.0,0.1103]
[1741412516232,0.3385445,86041.0,86040.0,0.1103]
[1741412516442,0.1202445,86041.0,86040.0,0.1103]
[1741412516631,0.1182445,86041.0,86040.0,0.1103]
[1741412516830,0.2263445,86041.0,86040.0,0.1103]
[1741412517137,0.2243445,86041.0,86040.0,0.1113]
[1741412518530,0.1162445,86041.0,86040.0,0.1113]
[1741412519440,0.1162445,86041.0,86040.0,0.1103]
[1741412520533,0.1162445,86041.0,86040.0,0.11894562]
[1741412521035,0.3404445,86041.0,86040.0,0.11894562]
[1741412522841,0.3404445,86041.0,86040.0,0.1103]
[1741412524736,0.3444445,86041.0,86040.0,0.1103]
[1741412525238,0.3424445,86041.0,86040.0,0.1103]
[1741412525440,0.3434445,86041.0,86040.0,0.1103]
[1741412525633,0.3424445,86041.0,86040.0,0.1103]
[1741412525943,0.2298445,86041.0,86040.0,0.1103]
[1741412526429,0.2288445,86041.0,86040.0,0.1103]
[1741412526632,0.3410445,86041.0,86040.0,0.1103]
[1741412527736,0.2258,86041.0,86040.0,0.1103]
[1741412527941,0.3420445,86041.0,86040.0,0.1103]
[1741412528137,0.3430445,86041.0,86040.0,0.1103]
[1741412529434,0.3420445,86041.0,86040.0,0.1103]
[1741412530143,0.7028445,86041.0,86040.0,0.1103]
[1741412530547,0.7018445,86041.0,86040.0,0.1103]
[1741412532045,0.7028445,86041.0,86040.0,0.1103]
[1741412532340,0.7038445,86041.0,86040.0,0.1103]
[1741412533046,0.7048445,86041.0,86040.0,0.1103]
[1741412533642,0.3440445,86041.0,86040.0,0.1103]
[1741412533847,0.7048445,86041.0,86040.0,0.1103]
[1741412534346,0.7058445,86041.0,86040.0,0.1103]
[1741412536742,0.7048445,86041.0,86040.0,0.1103]
[1741412536941,0.7048445,86041.0,86040.0,0.11919564]
[1741412537142,0.7048445,86041.0,86030.0,8e-08]
[1741412537143,0.116258,86031.0,86030.0,8e-08]
[1741412537343,0.1162634,86027.0,86021.0,0.00174389]
[1741412537652,0.1162634,86027.0,86019.0,0.11284]
[1741412538345,0.1162634,86027.0,86013.0,0.3608]
[1741412538548,0.1162634,86027.0,86014.0,0.1128]
[1741412538750,0.1162634,86027.0,86016.0,4e-05]
[1741412539145,0.1162634,86027.0,86026.0,0.00117431]
[1741412540754,0.1162634,86027.0,86026.0,0.00990771]
[1741412540945,0.1162634,86027.0,86026.0,0.00117431]
[1741412541853,0.1162756,86018.0,86017.0,0.00880833]
[1741412542041,0.65414,86018.0,86007.0,0.10527783]
[1741412542246,0.1162878,86009.0,86008.0,0.1107]
[1741412542446,0.4770878,86009.0,86008.0,0.1107]
[1741412542848,0.4770878,86009.0,86008.0,0.0768497]
[1741412543048,0.7002878,86009.0,86008.0,0.0768497]
[1741412543753,0.7002878,86009.0,86008.0,1e-07]
[1741412544155,0.714858,86009.0,86008.0,1e-07]
[1741412544540,0.714858,86009.0,86007.0,0.10527783]
[1741412544541,0.1152891,86008.0,86007.0,3e-08]
[1741412544745,0.2219891,86008.0,86007.0,3e-08]
[1741412545045,0.4469891,86008.0,86007.0,3e-08]
[1741412545644,0.4469891,86008.0,86003.0,1.11622727]
[1741412545645,0.4469891,86008.0,86003.0,1.0714502]
[1741412545852,0.1162945,86004.0,86003.0,1.0700102]
[1741412546460,0.0581463,86006.0,86000.0,8e-08]
[1741412546461,0.1162986,86001.0,86000.0,8e-08]
[1741412546755,0.4770986,86001.0,86000.0,8e-08]
[1741412547451,0.4770986,86001.0,85976.0,0.73168]
[1741412547452,0.1163311,85977.0,85976.0,0.73168]
[1741412547645,0.1163311,85977.0,85976.0,0.73172]
[1741412547646,0.4771311,85977.0,85976.0,0.73172]
[1741412547845,0.4771311,85977.0,85976.0,4e-05]
[1741412548045,0.4771311,85977.0,85976.0,0.00861241]
[1741412548250,0.4771311,85977.0,85976.0,4e-05]
[1741412548447,0.1163351,85974.0,85973.0,0.1038]
[1741412549151,0.1163351,85974.0,85973.0,0.11260686]
[1741412549447,0.1163351,85974.0,85973.0,0.00880686]
[1741412549653,0.1163419,85969.0,85968.0,1e-08]
[1741412549845,0.1163541,85960.0,85959.0,0.2133]
[1741412550446,0.2113,85961.0,85951.0,0.1086]
[1741412550657,0.1745436,85954.0,85953.0,0.1095]
[1741412551143,0.0581814,85954.0,85953.0,0.1095]
[1741412551942,0.0581831,85951.0,85946.0,0.3608]
[1741412552143,0.1163703,85948.0,85947.0,0.10957535]
[1741412552556,0.3361703,85948.0,85947.0,0.10957535]
[1741412553548,0.3361703,85948.0,85947.0,0.11838918]
[1741412553758,0.3361703,85948.0,85947.0,0.10957535]
[1741412556247,0.2275703,85948.0,85947.0,0.21377535]
[1741412556449,0.1163703,85948.0,85947.0,0.21377535]
[1741412556859,0.2260703,85948.0,85947.0,0.21377535]
[1741412557060,0.3369703,85948.0,85947.0,0.21377535]
[1741412557653,0.3369703,85948.0,85947.0,7.535e-05]
[1741412558149,0.3369703,85948.0,85947.0,0.10937535]
[1741412558462,0.3369703,85948.0,85947.0,7.535e-05]
[1741412560052,0.3369703,85948.0,85947.0,0.00872251]
[1741412560251,0.116373,85946.0,85945.0,0.00017441]
[1741412560648,0.116373,85946.0,85945.0,1e-08]
[1741412561650,0.116373,85946.0,85945.0,0.00867769]
[1741412561855,0.116373,85946.0,85945.0,1e-08]
[1741412566056,0.116373,85946.0,85945.0,0.11637441]
[1741412566863,0.116373,85946.0,85945.0,0.47717441]
[1741412567267,0.116373,85946.0,85945.0,0.59167441]
[1741412568161,0.116373,85946.0,85945.0,0.11450001]
[1741412568959,0.230273,85946.0,85945.0,0.11450001]
[1741412569159,0.341073,85946.0,85945.0,0.11450001]
[1741412569561,0.2247,85946.0,85927.0,0.3608]
[1741412569763,0.116396,85929.0,85928.0,0.2171]
[1741412570965,0.116396,85929.0,85928.0,0.3334974]
[1741412572271,0.116396,85929.0,85928.0,0.34237276]
[1741412572458,0.116396,85929.0,85928.0,0.22597536]
[1741412572863,0.116396,85929.0,85928.0,0.33547536]
[1741412573057,0.116396,85929.0,85928.0,0.45187276]
[1741412573475,0.116396,85929.0,85928.0,0.4429974]
[1741412573670,0.116396,85929.0,85928.0,0.6356974]
[1741412573968,0.116396,85929.0,85928.0,0.4429974]
[1741412577473,0.05098465,85929.0,85928.0,0.4429974]
[1741412578072,0.05098465,85929.0,85928.0,0.3266]
[1741412578375,0.05098465,85929.0,85928.0,0.33553439]
[1741412578576,0.05098465,85929.0,85928.0,0.45193179]
[1741412578983,0.1745919,85933.0,85932.0,0.116392]
[1741412579669,0.1163933,85931.0,85930.0,0.1745905]
[1741412582181,0.1163933,85931.0,85930.0,0.5353905]
[1741412584590,0.0581957,85933.0,85930.0,0.5353905]
[1741412584778,0.116392,85932.0,85931.0,0.228592]
[1741412585988,0.11656032,85937.0,85936.0,0.1163866]
[1741412586189,0.11656032,85937.0,85936.0,0.2285866]
[1741412588185,0.05115809,85937.0,85936.0,0.2285866]
[1741412589896,0.05115809,85937.0,85936.0,0.1122]
[1741412590197,0.05115809,85937.0,85936.0,0.2285866]
[1741412590383,0.15735809,85937.0,85936.0,0.2285866]
[1741412591185,0.17474062,85945.0,85944.0,0.1163757]
[1741412591889,0.1163784,85942.0,85941.0,0.0581896]
[1741412592089,0.1163811,85940.0,85939.0,0.28933669]
[1741412592383,0.1163811,85940.0,85939.0,0.40571919]
[1741412592584,0.1163811,85940.0,85939.0,0.76651919]
[1741412592786,0.1163811,85940.0,85939.0,0.6853825]
[1741412592987,0.3291811,85940.0,85939.0,0.569]
[1741412593184,0.2128,85940.0,85939.0,0.4635]
[1741412593383,0.3291811,85940.0,85939.0,0.54463669]
[1741412593991,0.3291811,85940.0,85939.0,0.66101919]
[1741412594388,0.3291811,85940.0,85939.0,0.30021919]
[1741412594589,0.3291811,85940.0,85939.0,0.66101919]
[1741412595894,0.3291811,85940.0,85939.0,0.30021919]
[1741412596094,0.26377884,85940.0,85939.0,0.66101919]
[1741412596485,0.26377884,85940.0,85939.0,0.30021919]
[1741412596689,0.26377884,85940.0,85939.0,0.66101919]
[1741412597692,0.26377884,85940.0,85939.0,0.54463669]
[1741412597881,0.26377884,85940.0,85939.0,0.66101919]
[1741412598799,0.26377884,85940.0,85939.0,0.40401919]
[1741412598988,0.26377884,85940.0,85939.0,0.76481919]
[1741412599586,0.26252033,85940.0,85939.0,0.76481919]
[1741412601298,0.18258628,85940.0,85939.0,0.76481919]
[1741412601503,0.10265223,85940.0,85939.0,0.76481919]
[1741412604000,0.10265223,85940.0,85939.0,0.77883479]
[1741412604505,0.07608,85965.0,85939.0,0.67104846]
[1741412604805,0.1163691,85949.0,85948.0,0.116369]
[1741412604994,0.1163691,85949.0,85948.0,0.477169]
[1741412605195,0.3278691,85949.0,85948.0,0.477169]
[1741412605503,0.3278691,85949.0,85948.0,0.66620569]
[1741412606095,0.26247417,85949.0,85948.0,0.66620569]
[1741412607093,0.00017452,85957.0,85948.0,0.66620569]
[1741412607294,0.00017452,85957.0,85956.0,0.4771595]
[1741412607500,0.11653262,85957.0,85956.0,0.4771595]
[1741412607995,0.22153262,85957.0,85956.0,0.55829619]
[1741412609200,0.22653262,85957.0,85956.0,0.55829619]
[1741412609596,0.00517452,85957.0,85956.0,0.55829619]
[1741412609794,0.12153262,85957.0,85956.0,0.44193669]
[1741412610304,0.1076,85958.0,85956.0,0.55829619]
[1741412610505,0.2277581,85957.0,85956.0,0.85298381]
[1741412610705,0.36144,85966.0,85956.0,0.73662431]
[1741412610907,0.1163493,85964.0,85963.0,0.1163487]
[1741412611108,0.1163493,85964.0,85963.0,0.19748539]
[1741412611298,0.3353493,85964.0,85963.0,0.19748539]
[1741412612400,0.3403493,85964.0,85963.0,0.19748539]
[1741412613004,0.3433493,85964.0,85963.0,0.19748539]
[1741412613907,0.3433493,85964.0,85963.0,0.49217301]
[1741412616400,0.1194,85964.0,85963.0,0.49217301]
[1741412616598,0.008,85964.0,85963.0,0.49217301]
[1741412618407,0.008,85964.0,85963.0,0.19748539]
[1741412618611,0.003,85964.0,85963.0,0.19748539]
[1741412618918,0.1163482,85965.0,85964.0,0.1745198]
[1741412619812,0.1163482,85965.0,85964.0,0.25565649]
[1741412620409,0.1163482,85965.0,85964.0,0.25665649]
[1741412621512,0.1163482,85965.0,85964.0,0.25765649]
[1741412622011,0.1163482,85965.0,85964.0,0.36805649]
[1741412623114,0.106,85967.0,85964.0,0.25171059]
[1741412623314,0.106,85967.0,85966.0,0.1163459]
[1741412623517,0.15696016,85967.0,85966.0,0.1163459]
[1741412623815,0.15696016,85967.0,85966.0,0.19748259]
[1741412625116,0.0581701,85971.0,85966.0,0.19848259]
[1741412625319,0.46870001,85975.0,85966.0,0.19848259]
[1741412625320,0.46870001,85975.0,85971.0,0.1163392]
[1741412625829,0.46870001,85975.0,85971.0,0.2267392]
[1741412626129,0.48247973,85975.0,85971.0,0.2267392]
[1741412626331,0.1033,85974.0,85971.0,0.2267392]
[1741412626631,0.1033,85974.0,85971.0,0.2277392]
[1741412626930,0.1122,85973.0,85971.0,0.2277392]
[1741412627121,0.11651232,85972.0,85971.0,0.2277392]
[1741412627321,0.11651232,85972.0,85971.0,0.3397392]
[1741412627522,0.00017452,85972.0,85971.0,0.71440634]
[1741412627829,0.00017452,85972.0,85971.0,0.71540634]
[1741412628025,0.00060001,86007.0,85971.0,0.59906714]
[1741412628230,0.1163185,85987.0,85986.0,0.1163175]
[1741412628422,0.1163185,85987.0,85986.0,0.3398175]
[1741412628623,0.2246185,85987.0,85986.0,0.3398175]
[1741412629027,0.2246185,85987.0,85986.0,0.42095419]
[1741412629732,0.1163175,85987.0,85986.0,0.42095289]
[1741412629925,0.1163175,85987.0,85986.0,0.3398162]
[1741412630120,0.00329,85989.0,85988.0,0.1163162]
[1741412630932,3.909e-05,85989.0,85988.0,0.3191162]
[1741412631430,3.909e-05,85989.0,85988.0,0.40025289]
[1741412632835,3.909e-05,85989.0,85988.0,0.3191162]
[1741412633132,3.909e-05,85989.0,85988.0,0.3201162]
[1741412633335,0.00017405,85995.0,85994.0,0.1163081]
[1741412634242,0.00017405,85995.0,85994.0,0.3326081]
[1741412634432,0.00017405,85995.0,85994.0,0.5253081]
[1741412634739,0.00017405,85995.0,85994.0,0.3326081]
[1741412635132,0.1092,86001.0,86000.0,0.1162999]
[1741412635441,0.0581481,86004.0,86003.0,0.1162895]
[1741412635738,0.1744467,86004.0,86003.0,0.2325793]
[1741412635939,0.0581481,86004.0,86001.0,0.2163]
[1741412636242,0.1162972,86002.0,86001.0,0.3325986]
[1741412636834,0.2228972,86002.0,86001.0,0.3325986]
[1741412637933,0.2228972,86002.0,86001.0,0.6943986]
[1741412638136,0.2228972,86002.0,86001.0,0.7083655]
[1741412638335,0.2228972,86002.0,86001.0,0.7093655]
[1741412638638,0.2228972,86002.0,86001.0,0.6953986]
[1741412641138,0.2228972,86002.0,86001.0,0.002]
[1741412641937,0.3329972,86002.0,86001.0,0.002]
[1741412642445,0.3329972,86002.0,86001.0,0.1032]
[1741412642637,0.3329972,86002.0,86001.0,0.11184236]
[1741412642832,0.3329972,86002.0,86001.0,0.11084236]
[1741412643038,0.3329972,86002.0,86001.0,0.00864236]
[1741412643336,0.1163027,85998.0,85997.0,0.0581516]
[1741412644138,0.3311027,85998.0,85997.0,0.0581516]
[1741412644531,0.3301027,85998.0,85997.0,0.0581516]
[1741412644936,0.3301027,85998.0,85997.0,0.0591516]
[1741412645139,0.3301027,85998.0,85997.0,0.0601516]
[1741412646143,0.3301027,85998.0,85997.0,0.06887912]
[1741412646846,0.3301027,85998.0,85997.0,0.01072752]
[1741412647147,0.3301027,85998.0,85997.0,0.12703152]
[1741412647952,0.0581481,86004.0,86003.0,0.0581468]
[1741412647953,0.0581477,86004.0,86003.0,0.0581468]
[1741412648246,0.1595477,86004.0,86003.0,0.0581468]
[1741412648638,0.1595477,86004.0,86003.0,0.1670468]
[1741412649243,0.0581477,86004.0,86003.0,0.1670468]
[1741412649544,0.1014,86007.0,86006.0,0.1162918]
[1741412649750,0.1014,86007.0,86006.0,0.13017927]
[1741412650242,0.2276843,86012.0,86011.0,0.1162851]
[1741412650432,0.1162891,86008.0,86007.0,0.2251904]
[1741412651747,0.2270891,86008.0,86007.0,0.2251904]
[1741412651942,0.2270891,86008.0,86007.0,0.1089]
[1741412652336,0.2270891,86008.0,86007.0,0.2251905]
[1741412652538,0.2270891,86008.0,86007.0,0.1089]
[1741412653239,0.1108,86008.0,86006.0,4e-05]
[1741412653440,0.2280905,86007.0,86006.0,4e-05]
[1741412653843,0.2280905,86007.0,86006.0,0.1163318]
[1741412654043,0.2280905,86007.0,86006.0,4e-05]
[1741412654247,0.5888905,86007.0,86006.0,4e-05]
[1741412654446,0.1163013,85999.0,85998.0,0.00017442]
[1741412655342,0.3347013,85999.0,85998.0,0.11647712]
[1741412655547,0.3347013,85999.0,85998.0,0.22207712]
[1741412655742,0.3347013,85999.0,85998.0,0.00117442]
[1741412657537,0.3347013,85999.0,85998.0,0.00217442]
[1741412658340,0.3347013,85999.0,85998.0,0.11847712]
[1741412659645,0.3347013,85999.0,85998.0,0.00217442]
[1741412659846,0.3347013,85999.0,85998.0,0.11847712]
[1741412661950,0.3347013,85999.0,85998.0,0.22417712]
[1741412662257,0.3347013,85999.0,85998.0,0.22317712]
[1741412662456,0.3347013,85999.0,85998.0,0.22417712]
[1741412662955,0.3347013,85999.0,85998.0,0.30531381]
[1741412663848,0.2276013,85999.0,85998.0,0.30431381]
[1741412664052,0.2276013,85999.0,85998.0,0.30531381]